[Event "44th Chess Olympiad Women 2022"]
[Site "Chennai"]
[Date "2022.08.07"]
[Round "9.78"]
[White "Alvarado Perez, Coralys M."]
[Black "Prasad, Tanvi"]
[Result "1-0"]
[WhiteElo "1471"]
[BlackElo "1165"]
[Annotator "NA RC"]
[PlyCount "51"]
[EventDate "2022.??.??"]
[TimeControl "60"]

1. e4 {[%emt 0:01:49]} e5 {[%emt 0:00:09]} 2. d4 {[%emt 0:00:05]} exd4 {
[%emt 0:00:07]} 3. Qxd4 {[%emt 0:00:09]} Nc6 {[%emt 0:00:10]} 4. Qe3 {[%emt 0:
00:00]} Nf6 {[%emt 0:00:08]} 5. Nc3 {[%emt 0:00:08]} Bb4 {[%emt 0:00:33]} 6.
Bd2 {[%emt 0:00:13]} d6 {[%emt 0:00:33]} 7. O-O-O {[%emt 0:00:24]} O-O {
[%emt 0:00:21]} 8. f3 {[%emt 0:00:07]} Be6 {[%emt 0:00:51]} 9. a3 {[%emt 0:00:
00]} Bc5 {[%emt 0:00:45]} 10. Qe1 {[%emt 0:00:57]} h6 {[%emt 0:07:38]} 11. g4 {
[%emt 0:00:30]} Nh7 {[%emt 0:00:46]} 12. h4 {[%emt 0:01:20]} Ne5 {[%emt 0:00:
00]} 13. Qg3 {[%emt 0:00:52]} Qe7 {[%emt 0:06:31]} 14. g5 {[%emt 0:05:20]} h5 {
[%emt 0:02:10]} 15. f4 {[%emt 0:00:37]} Ng4 {[%emt 0:01:17]} 16. Nh3 {[%emt 0:
00:00]} f5 {[%emt 0:01:31]} 17. Bd3 {[%emt 0:01:55]} g6 {[%emt 0:04:27]} 18.
exf5 {[%emt 0:02:57]} Bxf5 {[%emt 0:01:37]} 19. Bc4+ {[%emt 0:02:44]} Kh8 {
[%emt 0:02:03]} 20. Rhe1 {[%emt 0:07:16]} Qd7 {[%emt 0:01:41]} 21. Nb5 {
[%emt 0:04:41]} a6 {[%emt 0:09:02]} 22. Bc3+ {[%emt 0:00:54]} Nhf6 {[%emt 0:00:
00]} 23. gxf6 {[%emt 0:14:38]} axb5 {[%emt 0:02:05]} 24. Re7 {[%emt 0:00:35]}
Qd8 {[%emt 0:10:21]} 25. Ng5 {[%emt 0:01:39]} bxc4 {[%emt 0:07:26]} 26. f7+ {
[%emt 0:01:09]} 1-0

[Event "44th Chess Olympiad Women 2022"]
[Site "Chennai"]
[Date "2022.08.07"]
[Round "9.78"]
[White "Lyons, Kieran"]
[Black "Rivera Negron Yanira"]
[Result "0-1"]
[WhiteElo "1767"]
[BlackElo "1770"]
[Annotator "NA"]
[PlyCount "86"]
[EventDate "2022.??.??"]
[TimeControl "60"]

1. e4 {[%emt 0:00:02]} e6 {[%emt 0:00:08]} 2. d4 {[%emt 0:00:03]} d5 {[%emt 0:
00:00]} 3. exd5 {[%emt 0:00:04]} exd5 {[%emt 0:00:08]} 4. Nf3 {[%emt 0:00:07]}
Nf6 {[%emt 0:00:12]} 5. Nc3 {[%emt 0:00:12]} c6 {[%emt 0:00:57]} 6. Bg5 {
[%emt 0:00:15]} Be7 {[%emt 0:00:06]} 7. Bd3 {[%emt 0:00:59]} Bg4 {[%emt 0:00:
00]} 8. O-O {[%emt 0:01:11]} Nbd7 {[%emt 0:00:57]} 9. Re1 {[%emt 0:00:35]} O-O
{[%emt 0:00:13]} 10. h3 {[%emt 0:00:22]} Bh5 {[%emt 0:00:35]} 11. g4 {[%emt 0:
00:00]} Bg6 {[%emt 0:00:20]} 12. Nh4 {[%emt 0:04:11]} Bxd3 {[%emt 0:03:38]} 13.
Qxd3 {[%emt 0:00:14]} g6 {[%emt 0:07:34]} 14. Nf3 {[%emt 0:07:10]} Re8 {
[%emt 0:01:02]} 15. Re2 {[%emt 0:04:54]} Qc7 {[%emt 0:06:28]} 16. Rae1 {
[%emt 0:01:11]} Bb4 {[%emt 0:06:47]} 17. Rxe8+ {[%emt 0:01:54]} Rxe8 {[%emt 0:
00:00]} 18. Rxe8+ {[%emt 0:00:04]} Nxe8 {[%emt 0:00:06]} 19. Qe3 {[%emt 0:00:
00]} Ng7 {[%emt 0:00:42]} 20. Bh6 {[%emt 0:03:15]} Ne6 {[%emt 0:07:06]} 21. h4
{[%emt 0:12:44]} Nf6 {[%emt 0:09:39]} 22. Ne5 {[%emt 0:01:39]} Bd6 {[%emt 0:00:
00]} 23. g5 {[%emt 0:14:19]} Bxe5 {[%emt 0:16:03]} 24. gxf6 {[%emt 0:03:31]}
Bxf6 {[%emt 0:08:50]} 25. Ne2 {[%emt 0:01:20]} Bxh4 {[%emt 0:01:01]} 26. Nf4 {
[%emt 0:01:09]} Qe7 {[%emt 0:01:23]} 27. Qe5 {[%emt 0:04:22]} Bf6 {[%emt 0:00:
00]} 28. Qb8+ {[%emt 0:02:30]} Nd8 {[%emt 0:02:13]} 29. c3 {[%emt 0:10:56]} a6
{[%emt 0:04:37]} 30. Nh3 {[%emt 0:03:19]} Bg7 {[%emt 0:05:37]} 31. Bg5 {
[%emt 0:01:06]} f6 {[%emt 0:01:40]} 32. Bf4 {[%emt 0:00:52]} Kf7 {[%emt 0:00:
00]} 33. Bd6 {[%emt 0:01:25]} Qd7 {[%emt 0:01:23]} 34. Kg2 {[%emt 0:09:41]} Bh6
{[%emt 0:00:44]} 35. f3 {[%emt 0:01:16]} Bc1 {[%emt 0:00:46]} 36. Ba3 {[%emt 0:
00:00]} g5 {[%emt 0:01:33]} 37. Nf2 {[%emt 0:00:10]} Bf4 {[%emt 0:01:01]} 38.
Qa7 {[%emt 0:01:17]} h5 {[%emt 0:00:42]} 39. Nd3 {[%emt 0:00:22]} Bd6 {[%emt 0:
00:00]} 40. Nc5 {[%emt 0:00:58]} Qc7 {[%emt 0:00:30]} 41. Kf2 {[%emt 0:31:14]}
h4 {[%emt 0:30:14]} 42. Kg2 {[%emt 0:00:08]} Kg6 {[%emt 0:01:33]} 43. b4 {
[%emt 0:00:43]} Bh2 {[%emt 0:01:20]} 0-1

[Event "44th Chess Olympiad Women 2022"]
[Site "Chennai"]
[Date "2022.08.07"]
[Round "9.78"]
[White "Terubea, Cydel"]
[Black "Comas Colon, Rinelly M."]
[Result "0-1"]
[WhiteElo "1450"]
[BlackElo "1585"]
[Annotator "NA"]
[PlyCount "107"]
[EventDate "2022.??.??"]
[TimeControl "60"]

1. e4 {[%emt 0:00:03]} g6 {[%emt 0:00:20]} 2. d4 {[%emt 0:00:08]} Bg7 {[%emt 0:
00:00]} 3. Nf3 {[%emt 0:00:40]} d6 {[%emt 0:00:19]} 4. h3 {[%emt 0:00:24]} Nf6
{[%emt 0:00:49]} 5. Bd3 {[%emt 0:00:48]} O-O {[%emt 0:01:18]} 6. O-O {[%emt 0:
00:00]} Nbd7 {[%emt 0:04:37]} 7. Nc3 {[%emt 0:03:30]} c5 {[%emt 0:03:33]} 8.
Be3 {[%emt 0:02:42]} b6 {[%emt 0:04:03]} 9. Qd2 {[%emt 0:02:56]} Bb7 {[%emt 0:
00:00]} 10. Bh6 {[%emt 0:03:08]} cxd4 {[%emt 0:04:56]} 11. Nxd4 {[%emt 0:02:01]
} Ne5 {[%emt 0:03:37]} 12. Bxg7 {[%emt 0:00:51]} Kxg7 {[%emt 0:00:05]} 13. f4 {
[%emt 0:01:58]} Nc6 {[%emt 0:01:07]} 14. Nf3 {[%emt 0:05:30]} e6 {[%emt 0:00:
00]} 15. Qf2 {[%emt 0:04:55]} h6 {[%emt 0:17:41]} 16. g4 {[%emt 0:05:46]} Rc8 {
[%emt 0:05:15]} 17. Kh2 {[%emt 0:08:27]} Nb8 {[%emt 0:11:00]} 18. Rg1 {[%emt 0:
00:00]} Nbd7 {[%emt 0:02:59]} 19. g5 {[%emt 0:04:09]} hxg5 {[%emt 0:05:27]} 20.
Rxg5 {[%emt 0:01:34]} Rc5 {[%emt 0:06:22]} 21. Rag1 {[%emt 0:00:23]} Rxg5 {
[%emt 0:00:37]} 22. Rxg5 {[%emt 0:00:15]} Nc5 {[%emt 0:01:46]} 23. Nd2 {
[%emt 0:02:52]} Rh8 {[%emt 0:02:03]} 24. f5 {[%emt 0:05:49]} Nxd3 {[%emt 0:00:
00]} 25. cxd3 {[%emt 0:00:21]} Rh6 {[%emt 0:03:09]} 26. fxe6 {[%emt 0:01:43]}
fxe6 {[%emt 0:00:34]} 27. Rg3 {[%emt 0:02:20]} Qd7 {[%emt 0:00:58]} 28. Nf3 {
[%emt 0:01:58]} e5 {[%emt 0:02:15]} 29. Nh4 {[%emt 0:01:08]} Rxh4 {[%emt 0:00:
00]} 30. Rxg6+ {[%emt 0:00:22]} Kxg6 {[%emt 0:00:17]} 31. Qxh4 {[%emt 0:00:06]}
Qh7 {[%emt 0:01:08]} 32. Qg3+ {[%emt 0:01:28]} Kf7 {[%emt 0:00:13]} 33. Nb5 {
[%emt 0:00:33]} Ke7 {[%emt 0:01:26]} 34. Qg5 {[%emt 0:00:52]} Bc8 {[%emt 0:00:
00]} 35. h4 {[%emt 0:00:38]} a6 {[%emt 0:01:51]} 36. Nxd6 {[%emt 0:00:23]} Kxd6
{[%emt 0:00:08]} 37. Qxf6+ {[%emt 0:00:05]} Be6 {[%emt 0:01:22]} 38. Qf2 {
[%emt 0:02:37]} Kc7 {[%emt 0:01:02]} 39. Qf6 {[%emt 0:00:29]} Kd6 {[%emt 0:00:
00]} 40. Qf2 {[%emt 0:00:06]} Ke7 {[%emt 0:01:12]} 41. Qg3 {[%emt 0:31:18]} Qh5
{[%emt 0:02:13]} 42. Qg5+ {[%emt 0:00:00]} Qxg5 {[%emt 0:00:38]} 43. hxg5 {
[%emt 0:00:00]} Kf7 {[%emt 0:01:09]} 44. a3 {[%emt 0:00:00]} Kg6 {[%emt 0:00:
00]} 45. Kg3 {[%emt 0:00:00]} Bb3 {[%emt 0:03:51]} 46. Kf3 {[%emt 0:00:00]}
Kxg5 {[%emt 0:06:18]} 47. Ke3 {[%emt 0:00:00]} Kf6 {[%emt 0:01:14]} 48. Kd2 {
[%emt 0:00:00]} Bf7 {[%emt 0:02:47]} 49. Kc3 {[%emt 0:00:00]} Ke6 {[%emt 0:00:
00]} 50. a4 {[%emt 0:00:00]} Kd6 {[%emt 0:00:38]} 51. Kb4 {[%emt 0:00:00]} Kc6
{[%emt 0:07:08]} 52. Kc3 {[%emt 0:00:00]} a5 {[%emt 0:01:52]} 53. b4 {[%emt 0:
00:00]} Bg8 {[%emt 0:02:53]} 54. b5+ {[%emt 0:00:00]} 0-1

[Event "44th Chess Olympiad Women 2022"]
[Site "Chennai"]
[Date "2022.08.07"]
[Round "9.78"]
[White "Vega Jimenez, Keyshla M."]
[Black "Sewak, Aarti"]
[Result "1-0"]
[WhiteElo "1653"]
[BlackElo "1412"]
[Annotator "NA RC"]
[PlyCount "133"]
[EventDate "2022.??.??"]
[TimeControl "60"]

1. e4 {[%emt 0:00:04]} e5 {[%emt 0:00:11]} 2. Nf3 {[%emt 0:00:06]} Nc6 {
[%emt 0:00:07]} 3. Nc3 {[%emt 0:00:21]} Nf6 {[%emt 0:00:53]} 4. d4 {[%emt 0:00:
00]} Bb4 {[%emt 0:01:31]} 5. d5 {[%emt 0:02:46]} Ne7 {[%emt 0:02:27]} 6. Bd2 {
[%emt 0:04:41]} d6 {[%emt 0:04:09]} 7. Bd3 {[%emt 0:05:40]} Bg4 {[%emt 0:03:59]
} 8. Qe2 {[%emt 0:02:46]} a6 {[%emt 0:00:44]} 9. O-O {[%emt 0:05:00]} h6 {
[%emt 0:01:56]} 10. a3 {[%emt 0:02:59]} Ba5 {[%emt 0:00:21]} 11. b4 {[%emt 0:
00:00]} Bb6 {[%emt 0:00:40]} 12. Nd1 {[%emt 0:01:32]} Ng6 {[%emt 0:03:57]} 13.
h3 {[%emt 0:02:33]} Bd7 {[%emt 0:01:24]} 14. c4 {[%emt 0:04:26]} Qc8 {[%emt 0:
00:00]} 15. Kh2 {[%emt 0:02:21]} c6 {[%emt 0:16:30]} 16. Rc1 {[%emt 0:10:54]}
c5 {[%emt 0:06:23]} 17. Nb2 {[%emt 0:04:30]} Nh5 {[%emt 0:04:50]} 18. Qd1 {
[%emt 0:05:22]} Bxh3 {[%emt 0:05:52]} 19. gxh3 {[%emt 0:02:46]} Nhf4 {[%emt 0:
00:00]} 20. Bxf4 {[%emt 0:00:49]} Nxf4 {[%emt 0:00:09]} 21. Ng1 {[%emt 0:00:19]
} cxb4 {[%emt 0:01:21]} 22. axb4 {[%emt 0:02:28]} Bd4 {[%emt 0:00:33]} 23. Rc2
{[%emt 0:02:23]} h5 {[%emt 0:00:14]} 24. c5 {[%emt 0:06:08]} Rh6 {[%emt 0:00:
00]} 25. cxd6 {[%emt 0:03:37]} Qd8 {[%emt 0:03:12]} 26. Ne2 {[%emt 0:01:14]}
Qh4 {[%emt 0:06:04]} 27. Nxf4 {[%emt 0:02:14]} Qxf4+ {[%emt 0:00:17]} 28. Kh1 {
[%emt 0:00:15]} Rd8 {[%emt 0:03:49]} 29. Nc4 {[%emt 0:02:14]} b5 {[%emt 0:00:
00]} 30. Ne3 {[%emt 0:02:06]} Bxe3 {[%emt 0:06:59]} 31. fxe3 {[%emt 0:00:06]}
Qxe3 {[%emt 0:00:16]} 32. Qf3 {[%emt 0:02:15]} Qxf3+ {[%emt 0:00:57]} 33. Rxf3
{[%emt 0:00:05]} Rhxd6 {[%emt 0:00:26]} 34. Be2 {[%emt 0:01:23]} g6 {[%emt 0:
00:00]} 35. Rfc3 {[%emt 0:01:33]} Ke7 {[%emt 0:00:27]} 36. Kg2 {[%emt 0:04:30]}
R8d7 {[%emt 0:01:30]} 37. Kg3 {[%emt 0:05:05]} Rf6 {[%emt 0:00:47]} 38. Rc6 {
[%emt 0:01:30]} Rdd6 {[%emt 0:07:39]} 39. Rxd6 {[%emt 0:02:01]} Rxd6 {[%emt 0:
00:00]} 40. Rc7+ {[%emt 0:01:47]} Ke8 {[%emt 0:00:48]} 41. Kh4 {[%emt 0:30:55]}
Rf6 {[%emt 0:31:05]} 42. Kg3 {[%emt 0:01:19]} Kd8 {[%emt 0:01:03]} 43. Rb7 {
[%emt 0:00:00]} Kc8 {[%emt 0:00:00]} 44. Re7 {[%emt 0:00:00]} Kd8 {[%emt 0:00:
00]} 45. Rxe5 {[%emt 0:00:00]} Kd7 {[%emt 0:00:00]} 46. Rg5 {[%emt 0:00:00]}
Ke7 {[%emt 0:00:00]} 47. e5 {[%emt 0:00:00]} Rb6 {[%emt 0:00:00]} 48. Kf3 {
[%emt 0:00:00]} Rb8 {[%emt 0:00:00]} 49. Ke3 {[%emt 0:00:00]} Rc8 {[%emt 0:00:
00]} 50. Kd2 {[%emt 0:00:00]} Rd8 {[%emt 0:00:00]} 51. Bf3 {[%emt 0:00:00]} Rd7
{[%emt 0:00:00]} 52. Rg1 {[%emt 0:00:00]} Rd8 {[%emt 0:00:00]} 53. Ra1 {
[%emt 0:00:00]} f6 {[%emt 0:00:00]} 54. Rxa6 {[%emt 0:00:00]} fxe5 {[%emt 0:00:
00]} 55. Rxg6 {[%emt 0:00:00]} Rd6 {[%emt 0:00:00]} 56. Rg5 {[%emt 0:00:00]}
Rf6 {[%emt 0:00:00]} 57. Rxe5+ {[%emt 0:00:00]} Kd7 {[%emt 0:00:00]} 58. Ke3 {
[%emt 0:00:00]} Ra6 {[%emt 0:00:00]} 59. Kf4 {[%emt 0:00:00]} Ra3 {[%emt 0:00:
00]} 60. Bxh5 {[%emt 0:00:00]} Rb3 {[%emt 0:00:00]} 61. Re3 {[%emt 0:00:19]}
Rxb4+ {[%emt 0:00:01]} 62. Re4 {[%emt 0:00:17]} Rb2 {[%emt 0:00:27]} 63. Ke5 {
[%emt 0:00:24]} Ra2 {[%emt 0:02:33]} 64. Bg4+ {[%emt 0:01:26]} Kc7 {[%emt 0:00:
00]} 65. d6+ {[%emt 0:00:43]} Kc6 {[%emt 0:01:08]} 66. Rd4 {[%emt 0:00:44]} Ra8
{[%emt 0:03:17]} 67. Bf3+ {[%emt 0:00:05]} 1-0

[Event "44th Chess Olympiad Women 2022"]
[Site "Chennai"]
[Date "2022.08.08"]
[Round "10.1"]
[White "Assaubayeva, Bibisara"]
[Black "Vaishali R"]
[Result "1/2-1/2"]
[WhiteElo "2436"]
[BlackElo "2442"]
[Annotator "RC"]
[PlyCount "100"]
[EventDate "2022.??.??"]
[TimeControl "60"]

1. d4 {[%emt 0:00:03]} Nf6 {[%emt 0:00:36]} 2. c4 {[%emt 0:00:05]} g6 {[%emt 0:
00:00]} 3. Nc3 {[%emt 0:00:06]} d5 {[%emt 0:00:04]} 4. cxd5 {[%emt 0:00:11]}
Nxd5 {[%emt 0:00:05]} 5. Bd2 {[%emt 0:00:05]} c5 {[%emt 0:00:39]} 6. dxc5 {
[%emt 0:00:12]} Bg7 {[%emt 0:00:12]} 7. Qa4+ {[%emt 0:00:09]} Bd7 {[%emt 0:00:
00]} 8. Qb3 {[%emt 0:12:35]} Be6 {[%emt 0:01:58]} 9. Qxb7 {[%emt 0:08:42]} O-O
{[%emt 0:00:57]} 10. Qxa8 {[%emt 0:16:13]} Qd7 {[%emt 0:01:51]} 11. e4 {
[%emt 0:14:50]} Nb4 {[%emt 0:10:09]} 12. Bb5 {[%emt 0:49:31]} N8c6 {[%emt 0:00:
00]} 13. Qxf8+ {[%emt 0:00:00]} Kxf8 {[%emt 0:02:42]} 14. Rd1 {[%emt 0:00:00]}
a6 {[%emt 0:22:46]} 15. Bh6 {[%emt 0:00:00]} Qc8 {[%emt 0:03:13]} 16. Bxg7+ {
[%emt 0:00:00]} Kxg7 {[%emt 0:00:02]} 17. Bxc6 {[%emt 0:00:00]} Qxc6 {[%emt 0:
00:00]} 18. Nge2 {[%emt 0:00:00]} Bc4 {[%emt 0:03:30]} 19. O-O {[%emt 0:00:00]}
Nxa2 {[%emt 0:01:36]} 20. Rfe1 {[%emt 0:00:00]} Nb4 {[%emt 0:01:07]} 21. Rd2 {
[%emt 0:00:00]} Qxc5 {[%emt 0:00:14]} 22. Red1 {[%emt 0:00:00]} h5 {[%emt 0:00:
00]} 23. h4 {[%emt 0:00:00]} Nc6 {[%emt 0:00:27]} 24. Nd5 {[%emt 0:00:00]} Ne5
{[%emt 0:00:41]} 25. Ne3 {[%emt 0:00:00]} Bxe2 {[%emt 0:00:58]} 26. Rxe2 {
[%emt 0:00:00]} e6 {[%emt 0:00:14]} 27. Ra1 {[%emt 0:00:00]} Qb5 {[%emt 0:00:
00]} 28. Kf1 {[%emt 0:00:00]} Nd3 {[%emt 0:00:23]} 29. g3 {[%emt 0:00:00]} Nc5
{[%emt 0:00:52]} 30. f3 {[%emt 0:00:00]} a5 {[%emt 0:00:20]} 31. Rd1 {[%emt 0:
00:00]} Nd3 {[%emt 0:00:30]} 32. Ra1 {[%emt 0:00:00]} a4 {[%emt 0:00:11]} 33.
Nd1 {[%emt 0:00:00]} Qc4 {[%emt 0:01:02]} 34. Ne3 {[%emt 0:00:00]} Qb5 {
[%emt 0:00:04]} 35. Nd1 {[%emt 0:00:00]} Qc4 {[%emt 0:00:57]} 36. Ne3 {[%emt 0:
00:00]} Qb4 {[%emt 0:02:08]} 37. Nd1 {[%emt 0:00:00]} Kh7 {[%emt 0:00:00]} 38.
Kg2 {[%emt 0:00:52]} Ne1+ {[%emt 0:00:00]} 39. Kf2 {[%emt 0:00:05]} Nd3+ {
[%emt 0:00:00]} 40. Kg2 {[%emt 0:00:06]} Qc4 {[%emt 0:00:23]} 41. Nc3 {[%emt 0:
00:00]} Nxb2 {[%emt 0:04:56]} 42. Rxb2 {[%emt 0:00:00]} Qxc3 {[%emt 0:00:09]}
43. Rba2 {[%emt 0:00:00]} Qe3 {[%emt 0:00:43]} 44. Rf2 {[%emt 0:00:00]} Qb3 {
[%emt 0:01:00]} 45. f4 {[%emt 0:00:00]} Qc4 {[%emt 0:00:54]} 46. e5 {[%emt 0:
00:00]} Qe4+ {[%emt 0:00:08]} 47. Kh2 {[%emt 0:00:00]} Qd4 {[%emt 0:00:22]} 48.
Rfa2 {[%emt 0:00:00]} Qe4 {[%emt 0:00:29]} 49. Rxa4 {[%emt 0:00:00]} Qe2+ {
[%emt 0:00:04]} 50. Kh3 {[%emt 0:00:00]} Qg4+ {[%emt 0:00:03]} 1/2-1/2

[Event "44th Chess Olympiad Women 2022"]
[Site "Chennai"]
[Date "2022.08.08"]
[Round "10.1"]
[White "Koneru, Humpy"]
[Black "Abdumalik, Zhansaya"]
[Result "1-0"]
[WhiteElo "2586"]
[BlackElo "2495"]
[Annotator "RC"]
[PlyCount "111"]
[EventDate "2022.??.??"]
[TimeControl "60"]

1. d4 {[%emt 0:00:06]} Nf6 {[%emt 0:00:19]} 2. c4 {[%emt 0:00:11]} e6 {[%emt 0:
00:00]} 3. Nf3 {[%emt 0:00:24]} d5 {[%emt 0:00:06]} 4. Nc3 {[%emt 0:00:16]} c6
{[%emt 0:00:05]} 5. e3 {[%emt 0:00:30]} Nbd7 {[%emt 0:00:30]} 6. Bd3 {[%emt 0:
00:00]} dxc4 {[%emt 0:00:32]} 7. Bxc4 {[%emt 0:00:09]} b5 {[%emt 0:00:18]} 8.
Bb3 {[%emt 0:00:19]} Bb7 {[%emt 0:03:46]} 9. O-O {[%emt 0:00:56]} a6 {[%emt 0:
00:00]} 10. e4 {[%emt 0:07:34]} b4 {[%emt 0:09:17]} 11. Na4 {[%emt 0:07:20]}
Nxe4 {[%emt 0:08:19]} 12. Re1 {[%emt 0:00:06]} Nef6 {[%emt 0:03:21]} 13. Ng5 {
[%emt 0:17:20]} Be7 {[%emt 0:05:57]} 14. Bxe6 {[%emt 0:08:46]} O-O {[%emt 0:00:
00]} 15. Qe2 {[%emt 0:06:18]} Nd5 {[%emt 0:04:51]} 16. Bxd5 {[%emt 0:01:28]}
Bxg5 {[%emt 0:00:23]} 17. Bxg5 {[%emt 0:01:02]} Qxg5 {[%emt 0:00:07]} 18. Bf3 {
[%emt 0:00:10]} Rad8 {[%emt 0:07:51]} 19. Rad1 {[%emt 0:09:36]} Nf6 {[%emt 0:
00:00]} 20. Qe5 {[%emt 0:02:35]} Qg6 {[%emt 0:02:42]} 21. Nc5 {[%emt 0:05:15]}
Bc8 {[%emt 0:02:47]} 22. Bxc6 {[%emt 0:05:46]} Ng4 {[%emt 0:01:25]} 23. Qc7 {
[%emt 0:00:14]} Qc2 {[%emt 0:06:37]} 24. Qf4 {[%emt 0:03:02]} Qxb2 {[%emt 0:00:
00]} 25. d5 {[%emt 0:00:41]} Qc2 {[%emt 0:00:10]} 26. Ne4 {[%emt 0:10:52]} Qxa2
{[%emt 0:04:09]} 27. d6 {[%emt 0:00:08]} Be6 {[%emt 0:02:56]} 28. h3 {[%emt 0:
00:00]} Nh6 {[%emt 0:00:41]} 29. Nc5 {[%emt 0:00:30]} Qc2 {[%emt 0:02:35]} 30.
Qxb4 {[%emt 0:02:02]} Rb8 {[%emt 0:01:38]} 31. Bb7 {[%emt 0:00:03]} Qg6 {
[%emt 0:01:15]} 32. d7 {[%emt 0:01:46]} Bxh3 {[%emt 0:01:53]} 33. Qe4 {[%emt 0:
00:00]} Qb6 {[%emt 0:02:04]} 34. Qc6 {[%emt 0:00:30]} Qxc6 {[%emt 0:03:05]} 35.
Bxc6 {[%emt 0:00:03]} Be6 {[%emt 0:00:07]} 36. Nxa6 {[%emt 0:00:40]} Rbd8 {
[%emt 0:00:16]} 37. Nc5 {[%emt 0:00:11]} Ng4 {[%emt 0:00:20]} 38. Nxe6 {
[%emt 0:02:25]} fxe6 {[%emt 0:00:04]} 39. Rxe6 {[%emt 0:00:07]} Nf6 {[%emt 0:
00:00]} 40. f3 {[%emt 0:00:44]} h5 {[%emt 0:02:19]} 41. Re7 {[%emt 0:06:44]}
Rf7 {[%emt 0:04:54]} 42. Re8+ {[%emt 0:02:57]} Rf8 {[%emt 0:00:04]} 43. Rde1 {
[%emt 0:02:51]} Rxd7 {[%emt 0:02:47]} 44. Bxd7 {[%emt 0:00:06]} Nxd7 {[%emt 0:
00:00]} 45. Kf2 {[%emt 0:00:30]} Rxe8 {[%emt 0:00:36]} 46. Rxe8+ {[%emt 0:00:
00]} Kf7 {[%emt 0:00:07]} 47. Ra8 {[%emt 0:00:33]} Nf6 {[%emt 0:00:35]} 48. Ra5
{[%emt 0:00:30]} Kg6 {[%emt 0:00:39]} 49. Kg3 {[%emt 0:01:11]} Kh6 {[%emt 0:00:
00]} 50. Kf4 {[%emt 0:03:24]} Nh7 {[%emt 0:01:50]} 51. Ke5 {[%emt 0:06:52]} Kg6
{[%emt 0:02:38]} 52. Ra6+ {[%emt 0:01:30]} Nf6 {[%emt 0:00:59]} 53. Kf4 {
[%emt 0:00:13]} h4 {[%emt 0:00:42]} 54. Rc6 {[%emt 0:01:31]} Kh5 {[%emt 0:00:
00]} 55. Rxf6 {[%emt 0:00:28]} gxf6 {[%emt 0:00:05]} 56. Kf5 {[%emt 0:00:04]}
1-0

[Event "44th Chess Olympiad Women 2022"]
[Site "Chennai"]
[Date "2022.08.08"]
[Round "10.1"]
[White "Nakhbayeva, Guliskhan"]
[Black "Kulkarni Bhakti"]
[Result "0-1"]
[WhiteElo "2329"]
[BlackElo "2373"]
[Annotator "RC"]
[PlyCount "94"]
[EventDate "2022.??.??"]
[TimeControl "60"]

1. d4 {[%emt 0:00:08]} Nf6 {[%emt 0:00:30]} 2. c4 {[%emt 0:00:14]} g6 {[%emt 0:
00:00]} 3. Nc3 {[%emt 0:00:41]} Bg7 {[%emt 0:00:12]} 4. e4 {[%emt 0:00:06]} d6
{[%emt 0:00:23]} 5. Bd3 {[%emt 0:00:12]} O-O {[%emt 0:00:34]} 6. Nge2 {[%emt 0:
00:00]} Nc6 {[%emt 0:12:31]} 7. O-O {[%emt 0:09:11]} e5 {[%emt 0:03:13]} 8. d5
{[%emt 0:00:17]} Ne7 {[%emt 0:09:38]} 9. Rb1 {[%emt 0:03:39]} c5 {[%emt 0:00:
00]} 10. h3 {[%emt 0:08:58]} Nh5 {[%emt 0:09:05]} 11. Bg5 {[%emt 0:15:58]} h6 {
[%emt 0:09:59]} 12. Be3 {[%emt 0:02:31]} f5 {[%emt 0:11:41]} 13. exf5 {[%emt 0:
00:00]} gxf5 {[%emt 0:00:13]} 14. Ng3 {[%emt 0:07:47]} Nf6 {[%emt 0:00:37]} 15.
f4 {[%emt 0:00:34]} e4 {[%emt 0:00:07]} 16. Be2 {[%emt 0:02:06]} Kh8 {[%emt 0:
00:00]} 17. Nh5 {[%emt 0:09:34]} Nxh5 {[%emt 0:00:35]} 18. Bxh5 {[%emt 0:00:02]
} Ng8 {[%emt 0:02:03]} 19. Ne2 {[%emt 0:05:55]} Qh4 {[%emt 0:02:45]} 20. Nc3 {
[%emt 0:01:50]} Bxc3 {[%emt 0:02:29]} 21. bxc3 {[%emt 0:00:18]} Nf6 {[%emt 0:
00:00]} 22. Be2 {[%emt 0:04:57]} Rg8 {[%emt 0:00:04]} 23. Kh1 {[%emt 0:03:26]}
Qg3 {[%emt 0:00:38]} 24. Bf3 {[%emt 0:02:28]} exf3 {[%emt 0:00:12]} 25. Qxf3 {
[%emt 0:00:28]} Qxf3 {[%emt 0:00:35]} 26. gxf3 {[%emt 0:00:57]} b6 {[%emt 0:00:
00]} 27. Bf2 {[%emt 0:00:19]} Ba6 {[%emt 0:00:34]} 28. Bh4 {[%emt 0:00:20]} Nh5
{[%emt 0:00:24]} 29. Rfe1 {[%emt 0:01:05]} Rae8 {[%emt 0:00:26]} 30. Be7 {
[%emt 0:09:10]} Bxc4 {[%emt 0:02:24]} 31. Bxd6 {[%emt 0:00:15]} Bxd5 {[%emt 0:
00:00]} 32. Rxe8 {[%emt 0:02:16]} Bxf3+ {[%emt 0:00:23]} 33. Kh2 {[%emt 0:00:
00]} Rxe8 {[%emt 0:00:07]} 34. Be5+ {[%emt 0:00:07]} Kg8 {[%emt 0:00:46]} 35.
Rf1 {[%emt 0:00:15]} Be2 {[%emt 0:00:20]} 36. Rf2 {[%emt 0:03:16]} Bd3 {
[%emt 0:00:14]} 37. Rd2 {[%emt 0:06:50]} c4 {[%emt 0:00:11]} 38. a4 {[%emt 0:
00:00]} Kf7 {[%emt 0:00:24]} 39. a5 {[%emt 0:00:34]} b5 {[%emt 0:01:30]} 40. a6
{[%emt 0:01:00]} Re6 {[%emt 0:00:58]} 41. Ra2 {[%emt 0:30:12]} Rg6 {[%emt 0:00:
00]} 42. Bb8 {[%emt 0:00:00]} Ng3 {[%emt 0:00:00]} 43. Kg2 {[%emt 0:00:00]}
Ne4+ {[%emt 0:00:00]} 44. Kh2 {[%emt 0:00:00]} Nxc3 {[%emt 0:00:00]} 45. Ra1 {
[%emt 0:00:00]} Ne2 {[%emt 0:00:00]} 46. Bxa7 {[%emt 0:00:00]} Be4 {[%emt 0:00:
00]} 47. h4 {[%emt 0:00:00]} Rg2+ {[%emt 0:00:00]} 0-1

[Event "44th Chess Olympiad Women 2022"]
[Site "Chennai"]
[Date "2022.08.08"]
[Round "10.1"]
[White "Tania, Sachdev"]
[Black "Balabayeva, Xeniya"]
[Result "1-0"]
[WhiteElo "2399"]
[BlackElo "2198"]
[Annotator "RC"]
[PlyCount "61"]
[EventDate "2022.??.??"]
[TimeControl "60"]

1. d4 {[%emt 0:00:36]} Nf6 {[%emt 0:00:12]} 2. c4 {[%emt 0:00:19]} e6 {[%emt 0:
00:00]} 3. Nf3 {[%emt 0:00:19]} d5 {[%emt 0:00:11]} 4. Nc3 {[%emt 0:00:42]}
dxc4 {[%emt 0:00:09]} 5. Bg5 {[%emt 0:10:21]} a6 {[%emt 0:12:11]} 6. e4 {
[%emt 0:08:14]} b5 {[%emt 0:03:06]} 7. e5 {[%emt 0:02:56]} h6 {[%emt 0:00:18]}
8. Bh4 {[%emt 0:00:39]} g5 {[%emt 0:00:54]} 9. Nxg5 {[%emt 0:04:47]} hxg5 {
[%emt 0:00:26]} 10. Bxg5 {[%emt 0:00:04]} Nbd7 {[%emt 0:00:44]} 11. a4 {
[%emt 0:20:00]} Rb8 {[%emt 0:16:44]} 12. axb5 {[%emt 0:04:29]} axb5 {[%emt 0:
00:00]} 13. Be2 {[%emt 0:11:58]} Be7 {[%emt 0:25:15]} 14. exf6 {[%emt 0:00:31]}
Nxf6 {[%emt 0:00:52]} 15. Bf3 {[%emt 0:02:45]} b4 {[%emt 0:08:40]} 16. Na4 {
[%emt 0:04:33]} Bd7 {[%emt 0:06:38]} 17. O-O {[%emt 0:13:35]} Bb5 {[%emt 0:00:
00]} 18. Re1 {[%emt 0:02:15]} Qd6 {[%emt 0:04:26]} 19. g3 {[%emt 0:01:16]} Rd8
{[%emt 0:02:14]} 20. Be3 {[%emt 0:04:02]} Nd5 {[%emt 0:03:22]} 21. Nc5 {
[%emt 0:02:16]} Qc6 {[%emt 0:01:46]} 22. Qc1 {[%emt 0:01:28]} Ra8 {[%emt 0:00:
00]} 23. Rxa8+ {[%emt 0:01:08]} Qxa8 {[%emt 0:00:01]} 24. Bg5 {[%emt 0:00:16]}
Qd8 {[%emt 0:02:28]} 25. Nxe6 {[%emt 0:02:20]} fxe6 {[%emt 0:01:04]} 26. Rxe6 {
[%emt 0:00:01]} Kf7 {[%emt 0:01:54]} 27. Bxd5 {[%emt 0:01:06]} Qxd5 {[%emt 0:
00:00]} 28. Rxe7+ {[%emt 0:00:10]} Kg6 {[%emt 0:00:08]} 29. Re5 {[%emt 0:00:54]
} Qf3 {[%emt 0:01:06]} 30. Rxb5 {[%emt 0:00:37]} Rh5 {[%emt 0:00:19]} 31. h4 {
[%emt 0:00:33]} 1-0